fUST/lending_fUST_20250408
["ID","MTS","AMOUNT","RATE_DAILY","PERIOD"]
[357402914,1744047038967,-255.61952644,0.00026407,2]
[357402915,1744047038976,-1200.75113188,0.00026407,2]
[357402916,1744047039003,-2541.43052368,0.00026407,2]
[357402917,1744047039013,-98230.7251878,0.00026408,2]
[357402918,1744047039023,-10308.93999016,0.00026417,3]
[357402919,1744047039033,-36231.94024082,0.00026417,2]
[357402920,1744047039043,-783.73948285,0.00026417,3]
[357402921,1744047039052,-160.0,0.00026417,3]
[357402922,1744047039062,-160.0,0.00026417,3]
[357402923,1744047039071,-419.36665037,0.00026417,3]
[357402924,1744047039080,-12527.9349248,0.00026417,3]
[357402925,1744047039090,-159825.36882026,0.00026418,2]
[357402931,1744047040807,-3915.32152418,0.00026418,2]
[357403191,1744047043657,-1000.0,0.00026418,2]
[357403487,1744047046974,-205259.30965556,0.00026418,2]
[357403489,1744047046984,-301.768367,0.00026418,10]
[357403492,1744047046994,-2592.66842849,0.00026444,2]
[357403494,1744047047004,-503.74538953,0.00026473,2]
[357403496,1744047047013,-500.0,0.00026473,2]
[357403498,1744047047023,-500.0,0.00026473,2]
[357403500,1744047047033,-507.74031525,0.00026473,2]
[357403502,1744047047042,-504.08158852,0.00026473,2]
[357403503,1744047047052,-500.0,0.00026473,2]
[357403505,1744047047061,-500.0,0.00026473,2]
[357403507,1744047047073,-466.77290927,0.00026473,2]
[357403509,1744047047084,-500.0,0.00026473,2]
[357403511,1744047047094,-500.0,0.00026473,2]
[357403513,1744047047103,-500.0,0.00026473,2]
[357403515,1744047047113,-500.0,0.00026473,2]
[357403517,1744047047122,-501.31307091,0.00026473,2]
[357403519,1744047047132,-500.0,0.00026473,2]
[357403521,1744047047143,-500.0,0.00026473,2]
[357403523,1744047047152,-500.0,0.00026473,2]
[357403525,1744047047162,-507.60079205,0.00026473,2]
[357403527,1744047047172,-500.0,0.00026473,2]
[357403529,1744047047180,-500.0,0.00026473,2]
[357403531,1744047047190,-500.40263264,0.00026473,2]
[357403533,1744047047200,-424.61764876,0.00026473,2]
[357403535,1744047047209,-424.05022058,0.00026473,2]
[357403537,1744047047219,-500.0,0.00026473,2]
[357403540,1744047047229,-500.0,0.00026473,2]
[357403541,1744047047238,-500.0,0.00026473,2]
[357403544,1744047047248,-296.0137244,0.00026473,2]
[357403546,1744047047257,-500.0,0.00026473,2]
[357403548,1744047047266,-500.0,0.00026473,2]
[357403550,1744047047275,-500.0,0.00026473,2]
[357403552,1744047047284,-500.0,0.00026473,2]
[357403554,1744047047293,-504.01256337,0.00026473,2]
[357403556,1744047047303,-500.0,0.00026473,2]
[357403558,1744047047312,-500.0,0.00026473,2]
[357403560,1744047047321,-508.26830363,0.00026473,2]
[357403562,1744047047333,-500.0,0.00026473,2]
[357403564,1744047047343,-500.0,0.00026473,2]
[357403566,1744047047352,-500.0,0.00026473,2]
[357403568,1744047047362,-500.0,0.00026473,2]
[357403570,1744047047372,-500.0,0.00026473,2]
[357403572,1744047047382,-500.0,0.00026473,2]
[357403574,1744047047393,-181.22,0.00026506,2]
[357403576,1744047047402,-166.0,0.00026515,2]
[357403578,1744047047414,-318.0,0.00026518,3]
[357403580,1744047047424,-193.02630372,0.00026562,2]
[357403582,1744047047433,-12278.8406485,0.00026718,2]
[357403584,1744047047443,-5066.74511808,0.00026728,6]
[357403586,1744047047452,-193.02630372,0.00026807,2]
[357403588,1744047047463,-2689.3,0.00026849,20]
[357403590,1744047047472,-2689.3,0.00026849,20]
[357403592,1744047047482,-193.02630372,0.00027052,2]
[357403594,1744047047492,-151.0,0.000271,11]
[357403596,1744047047503,-151.0,0.000272,20]
[357403598,1744047047512,-193.02630372,0.00027297,2]
[357403600,1744047047524,-151.0,0.000273,20]
[357403602,1744047047533,-151.0,0.000273,19]
[357403604,1744047047542,-156.01938242,0.00027373,2]
[357403606,1744047047552,-500.0,0.00027373,2]
[357403608,1744047047562,-500.0,0.00027373,2]
[357403610,1744047047572,-500.0,0.00027373,2]
[357403612,1744047047582,-500.0,0.00027373,2]
[357403614,1744047047591,-500.0,0.00027373,2]
[357403616,1744047047601,-514.54664532,0.00027373,2]
[357403619,1744047047610,-500.0,0.00027373,2]
[357403621,1744047047620,-500.0,0.00027373,2]
[357403622,1744047047630,-500.81834583,0.00027373,2]
[357403625,1744047047641,-501.3550675,0.00027373,2]
[357403627,1744047047651,-500.0,0.00027373,2]
[357403629,1744047047660,-500.0,0.00027373,2]
[357403631,1744047047670,-500.0,0.00027373,2]
[357403633,1744047047679,-500.0,0.00027373,2]
[357403635,1744047047689,-500.0,0.00027373,2]
[357403637,1744047047699,-500.0,0.00027386,2]
[357403639,1744047047710,-184.17714551,0.00027386,2]
[357403641,1744047047719,-85951.8845394,0.00027387,2]
[357403643,1744047047728,-549.60611556,0.00027391,2]
[357403644,1744047047738,-160.0,0.00027396,2]
[357403645,1744047047748,-500.0,0.00027397,7]
[357403646,1744047047758,-500.0,0.00027397,7]
[357403647,1744047047768,-500.0,0.00027397,7]
[357403648,1744047047777,-500.0,0.00027397,7]
[357403649,1744047047787,-500.0,0.00027397,7]
[357403650,1744047047796,-500.0,0.00027397,7]
[357403651,1744047047806,-500.0,0.00027397,7]
[357403652,1744047047815,-500.0,0.00027397,7]
[357403653,1744047047825,-500.0,0.00027397,7]
[357403654,1744047047835,-500.0,0.00027397,7]
[357403655,1744047047845,-500.0,0.00027397,7]
[357403656,1744047047855,-500.0,0.00027397,7]
[357403657,1744047047864,-500.0,0.00027397,7]
[357403658,1744047047875,-500.0,0.00027397,7]
[357403659,1744047047885,-500.0,0.00027397,7]
[357403661,1744047047896,-500.0,0.00027397,7]
[357403663,1744047047906,-247.27634093,0.00027397,7]
[357403665,1744047047915,-500.0,0.00027397,7]
[357403667,1744047047925,-500.0,0.00027397,7]
[357403669,1744047047934,-500.0,0.00027397,7]
[357403671,1744047047944,-500.0,0.00027397,7]
[357403673,1744047047954,-546.47566805,0.00027397,7]
[357403675,1744047047963,-500.0,0.00027397,7]
[357403677,1744047047972,-500.0,0.00027397,7]
[357403679,1744047047982,-500.0,0.00027397,7]
[357403681,1744047047991,-509.20510359,0.00027397,7]
[357403683,1744047048000,-504.51218448,0.00027397,7]
[357403685,1744047048010,-500.0,0.00027397,7]
[357403687,1744047048019,-500.0,0.00027397,7]
[357403689,1744047048029,-500.0,0.00027397,7]
[357403691,1744047048039,-504.13685159,0.00027397,7]
[357403693,1744047048049,-507.55061301,0.00027397,7]
[357403695,1744047048058,-500.0,0.00027397,7]
[357403697,1744047048068,-500.0,0.00027397,7]
[357403699,1744047048077,-500.0,0.00027397,7]
[357403701,1744047048087,-500.0,0.00027397,7]
[357403703,1744047048097,-500.0,0.00027397,7]
[357403705,1744047048106,-609.33939701,0.00027397,7]
[357403707,1744047048115,-385.0,0.00027397,7]
[357403709,1744047048125,-500.0,0.00027397,7]
[357403711,1744047048135,-500.0,0.00027397,7]
[357403713,1744047048147,-500.0,0.00027397,7]
[357403715,1744047048157,-500.0,0.00027397,7]
[357403717,1744047048167,-500.25746751,0.00027397,7]
[357403719,1744047048177,-500.0,0.00027397,7]
[357403721,1744047048187,-500.0,0.00027397,7]
[357403723,1744047048197,-634.24,0.00027397,7]
[357403725,1744047048207,-500.0,0.00027397,7]
[357403727,1744047048218,-500.0,0.00027397,7]
[357403729,1744047048227,-536.47,0.00027397,7]
[357403731,1744047048237,-616.73,0.00027397,7]
[357403733,1744047048248,-500.0,0.00027397,7]
[357403735,1744047048258,-500.0,0.00027397,7]
[357403737,1744047048268,-500.0,0.00027397,7]
[357403739,1744047048278,-710.16,0.00027397,7]
[357403741,1744047048287,-500.0,0.00027397,7]
[357403743,1744047048297,-590.9370859,0.00027397,7]
[357403745,1744047048306,-961.8,0.00027397,7]
[357403747,1744047048316,-413.61085674,0.00027397,7]
[357403749,1744047048326,-500.0,0.00027397,7]
[357403751,1744047048336,-500.0,0.00027397,7]
[357403753,1744047048349,-500.0,0.00027397,7]
[357403755,1744047048359,-500.0,0.00027397,2]
[357403757,1744047048369,-611.54,0.00027397,7]
[357403759,1744047048379,-500.0,0.00027397,7]
[357403761,1744047048392,-500.0,0.00027397,7]
[357403763,1744047048403,-1000.0,0.00027397,7]
[357403765,1744047048412,-500.0,0.00027397,7]
[357403767,1744047048424,-500.0,0.00027397,7]
[357403769,1744047048435,-500.0,0.00027397,7]
[357403771,1744047048444,-1225.55,0.00027397,7]
[357403773,1744047048453,-500.0,0.00027397,7]
[357403775,1744047048463,-1049.83,0.00027397,7]
[357403777,1744047048472,-500.0,0.00027397,7]
[357403779,1744047048483,-527.09856675,0.00027397,7]
[357403781,1744047048492,-500.0,0.00027397,7]
[357403783,1744047048501,-500.0,0.00027397,7]
[357403785,1744047048511,-500.0,0.00027397,7]
[357403787,1744047048521,-500.0,0.00027397,7]
[357403789,1744047048530,-500.0,0.00027397,7]
[357403791,1744047048541,-595.79622551,0.00027397,7]
[357403793,1744047048549,-500.0,0.00027397,7]
[357403795,1744047048559,-500.0,0.00027397,7]
[357403797,1744047048568,-1000.0,0.00027397,7]
[357403799,1744047048577,-500.0,0.00027397,7]
[357403801,1744047048586,-500.0,0.00027397,7]
[357403803,1744047048595,-894.9,0.00027397,7]
[357403805,1744047048606,-500.0,0.00027397,7]
[357403807,1744047048615,-500.0,0.00027397,7]
[357403809,1744047048624,-567.3040018,0.00027397,7]
[357403811,1744047048634,-253.7492173,0.00027397,7]
[357403814,1744047048645,-500.0,0.00027397,7]
[357403816,1744047048654,-500.0,0.00027397,7]
[357403818,1744047048663,-500.0,0.00027397,7]
[357403820,1744047048673,-500.0,0.00027397,7]
[357403822,1744047048683,-500.0,0.00027397,7]
[357403824,1744047048692,-499.24234225,0.00027397,7]
[357403826,1744047048702,-567.04288394,0.00027397,7]
[357403828,1744047048712,-500.0,0.00027397,7]
[357403830,1744047048721,-430.23434151,0.00027397,7]
[357403832,1744047048731,-500.0,0.00027397,7]
[357403834,1744047048740,-500.0,0.00027397,7]
[357403836,1744047048750,-500.0,0.00027397,7]
[357403838,1744047048759,-500.0,0.00027397,7]
[357403840,1744047048769,-500.0,0.00027397,7]
[357403842,1744047048778,-500.0,0.00027397,7]
[357403844,1744047048787,-151.0,0.00027397,7]
[357403846,1744047048797,-500.0,0.00027397,7]
[357403848,1744047048806,-560.73,0.00027397,7]
[357403850,1744047048816,-500.0,0.00027397,7]
[357403852,1744047048826,-151.0,0.00027397,7]
[357403854,1744047048835,-500.0,0.00027397,7]
[357403856,1744047048844,-500.0,0.00027397,7]
[357403858,1744047048853,-500.0,0.00027397,7]
[357403860,1744047048862,-521.37,0.00027397,7]
[357403862,1744047048871,-500.0,0.00027397,7]
[357403864,1744047048881,-500.0,0.00027397,7]
[357403866,1744047048891,-500.0,0.00027397,7]
[357403868,1744047048901,-500.0,0.00027397,7]
[357403870,1744047048910,-500.0,0.00027397,7]
[357403872,1744047048919,-772.49,0.00027397,7]
[357403874,1744047048928,-500.0,0.00027397,7]
[357403876,1744047048936,-500.0,0.00027397,7]
[357403878,1744047048946,-500.0,0.00027397,7]
[357403880,1744047048955,-500.0,0.00027397,7]
[357403882,1744047048965,-151.0,0.00027397,7]
[357403884,1744047048974,-500.0,0.00027397,7]
[357403886,1744047048988,-151.0,0.00027397,7]
[357403887,1744047048998,-500.0,0.00027397,7]
[357403889,1744047049007,-151.0,0.00027397,7]
[357403892,1744047049017,-500.0,0.00027397,7]
[357403893,1744047049027,-500.0,0.00027397,7]
[357403896,1744047049037,-522.35420091,0.00027397,7]
[357403897,1744047049046,-500.0,0.00027397,7]
[357403900,1744047049056,-500.0,0.00027397,7]
[357403902,1744047049066,-507.030597,0.00027397,2]
[357403903,1744047049075,-531.30406411,0.00027397,7]
[357403906,1744047049085,-500.0,0.00027397,7]
[357403908,1744047049094,-519.97944041,0.00027397,7]
[357403910,1744047049103,-640.98687146,0.00027397,7]
[357403912,1744047049113,-507.030597,0.00027397,2]
[357403914,1744047049122,-560.68,0.00027397,7]
[357403916,1744047049131,-500.0,0.00027397,7]
[357403918,1744047049141,-500.0,0.00027397,7]
[357403919,1744047049150,-741.59,0.00027397,7]
[357403922,1744047049161,-512.18324366,0.00027397,7]
[357403924,1744047049170,-511.34237558,0.00027397,7]
[357403925,1744047049181,-500.0,0.00027397,7]
[357403927,1744047049190,-500.0,0.00027397,7]
[357403929,1744047049200,-500.0,0.00027397,7]
[357403932,1744047049210,-500.0,0.00027397,7]
[357403934,1744047049220,-500.0,0.00027397,7]
[357403935,1744047049229,-500.0,0.00027397,7]
[357403937,1744047049239,-404.96714042,0.00027397,7]
[357403939,1744047049249,-500.0,0.00027397,7]
[357403940,1744047049258,-500.0,0.00027397,7]
[357403942,1744047049267,-500.0,0.00027397,7]
[357403944,1744047049276,-500.0,0.00027397,7]
[357403945,1744047049286,-500.0,0.00027397,7]
[357403947,1744047049295,-500.0,0.00027397,7]
[357403950,1744047049305,-500.0,0.00027397,7]
[357403952,1744047049314,-500.0,0.00027397,7]
[357403954,1744047049323,-151.0,0.00027397,7]
[357403956,1744047049336,-500.0,0.00027397,7]
[357403958,1744047049345,-500.0,0.00027397,7]
[357403959,1744047049355,-500.0,0.00027397,7]
[357403961,1744047049364,-506.72117464,0.00027397,7]
[357403963,1744047049374,-500.0,0.00027397,7]
[357403965,1744047049383,-500.0,0.00027397,7]
[357403967,1744047049394,-1259.13,0.00027397,7]
[357403969,1744047049404,-500.0,0.00027397,7]
[357403971,1744047049416,-500.0,0.00027397,7]
[357403973,1744047049426,-500.0,0.00027397,7]
[357403975,1744047049436,-500.0,0.00027397,7]
[357403977,1744047049446,-500.0,0.00027397,7]
[357403979,1744047049456,-500.0,0.00027397,7]
[357403981,1744047049465,-500.0,0.00027397,7]
[357403983,1744047049475,-500.0,0.00027397,7]
[357403985,1744047049484,-500.0,0.00027397,7]
[357403987,1744047049493,-500.0,0.00027397,7]
[357403989,1744047049502,-307.42875492,0.00027397,7]
[357403991,1744047049512,-501.78011489,0.00027397,7]
[357403993,1744047049521,-500.0,0.00027397,7]
[357403994,1744047049530,-654.6,0.00027397,7]
[357403996,1744047049540,-500.0,0.00027397,7]
[357403998,1744047049549,-914.61,0.00027397,7]
[357404000,1744047049559,-500.0,0.00027397,7]
[357404002,1744047049568,-500.0,0.00027397,7]
[357404004,1744047049577,-500.0,0.00027397,7]
[357404006,1744047049586,-500.0,0.00027397,7]
[357404008,1744047049596,-500.0,0.00027397,7]
[357404010,1744047049606,-500.0,0.00027397,7]
[357404013,1744047049615,-500.0,0.00027397,7]
[357404015,1744047049625,-500.0,0.00027397,7]
[357404017,1744047049636,-500.0,0.00027397,7]
[357404019,1744047049646,-504.71682295,0.00027397,7]
[357404021,1744047049655,-500.0,0.00027397,7]
[357404023,1744047049664,-500.0,0.00027397,7]
[357404025,1744047049673,-500.0,0.00027397,7]
[357404027,1744047049682,-572.75,0.00027397,7]
[357404029,1744047049691,-193.97919986,0.00027397,7]
[357404030,1744047049700,-200.0,0.00027397,7]
[357404033,1744047049710,-474.34403763,0.00027397,7]
[357404035,1744047049719,-500.0,0.00027397,7]
[357404036,1744047049728,-500.0,0.00027397,7]
[357404038,1744047049739,-500.0,0.00027397,7]
[357404041,1744047049749,-500.0,0.00027397,7]
[357404042,1744047049759,-767.01,0.00027397,7]
[357404044,1744047049769,-195.58230864,0.00027397,7]
[357404046,1744047049778,-500.0,0.00027397,7]
[357404049,1744047049788,-500.0,0.00027397,7]
[357404051,1744047049798,-500.0,0.00027397,7]
[357404053,1744047049807,-500.0,0.00027397,7]
[357404055,1744047049816,-500.0,0.00027397,7]
[357404057,1744047049825,-500.0,0.00027397,7]
[357404058,1744047049835,-500.0,0.00027397,7]
[357404061,1744047049845,-500.0,0.00027397,7]
[357404063,1744047049854,-500.0,0.00027397,7]
[357404065,1744047049864,-500.0,0.00027397,7]
[357404067,1744047049873,-500.0,0.00027397,7]
[357404069,1744047049883,-374.2025567,0.00027397,7]
[357404071,1744047049894,-151.0,0.00027397,7]
[357404072,1744047049903,-500.0,0.00027397,7]
[357404075,1744047049912,-500.0,0.00027397,7]
[357404077,1744047049921,-500.0,0.00027397,7]
[357404079,1744047049931,-500.0,0.00027397,7]
[357404081,1744047049940,-500.0,0.00027397,7]
[357404083,1744047049949,-500.0,0.00027397,3]
[357404085,1744047049958,-500.0,0.00027397,7]
[357404087,1744047049968,-683.446219,0.00027397,7]
[357404089,1744047049977,-500.0,0.00027397,7]
[357404091,1744047049986,-620.81777994,0.00027397,7]
[357404093,1744047049995,-500.0,0.00027397,7]
[357404094,1744047050005,-500.0,0.00027397,7]
[357404095,1744047050015,-500.0,0.00027397,7]
[357404096,1744047050025,-506.04284673,0.00027397,7]
[357404097,1744047050035,-503.83560905,0.00027397,7]
[357404098,1744047050045,-500.0,0.00027397,7]
[357404099,1744047050055,-519.99328734,0.00027397,7]
[357404100,1744047050065,-523.61766249,0.00027397,7]
[357404101,1744047050074,-500.0,0.00027397,7]
[357404102,1744047050083,-500.0,0.00027397,7]
[357404103,1744047050093,-500.0,0.00027397,7]
[357404104,1744047050103,-587.25,0.00027397,7]
[357404105,1744047050113,-500.0,0.00027397,7]
[357404106,1744047050122,-500.0,0.00027397,7]
[357404122,1744047050294,-500.0,0.00027397,7]
[357404124,1744047050303,-500.0,0.00027397,7]
[357404126,1744047050312,-500.0,0.00027397,7]
[357404128,1744047050322,-500.0,0.00027397,7]
[357404130,1744047050331,-500.0,0.00027397,7]
[357404132,1744047050341,-318.96236435,0.00027397,7]
[357404134,1744047050352,-500.0,0.00027397,7]
[357404136,1744047050361,-700.1,0.00027397,7]
[357404138,1744047050371,-500.0,0.00027397,7]
[357404140,1744047050380,-500.0,0.00027397,7]
[357404143,1744047050391,-513.93548417,0.00027397,7]
[357404144,1744047050401,-500.0,0.00027397,7]
[357404147,1744047050410,-937.3,0.00027397,7]
[357404149,1744047050419,-500.0,0.00027397,7]
[357404151,1744047050428,-520.78,0.00027397,7]
[357404152,1744047050438,-500.0,0.00027397,7]
[357404155,1744047050448,-500.0,0.00027397,7]
[357404157,1744047050458,-151.0,0.00027397,7]
[357404159,1744047050467,-500.0,0.00027397,7]
[357404161,1744047050476,-500.0,0.00027397,7]
[357404163,1744047050486,-1251.92,0.00027397,7]
[357404165,1744047050495,-500.0,0.00027397,7]
[357404167,1744047050504,-500.0,0.00027397,7]
[357404169,1744047050513,-151.0,0.00027397,7]
[357404171,1744047050523,-500.0,0.00027397,7]
[357404173,1744047050532,-500.0,0.00027397,7]
[357404175,1744047050542,-500.0,0.00027397,7]
[357404177,1744047050552,-151.0,0.00027397,7]
[357404179,1744047050561,-500.0,0.00027397,7]
[357404181,1744047050570,-500.0,0.00027397,7]
[357404183,1744047050579,-920.4,0.00027397,7]
[357404185,1744047050588,-500.0,0.00027397,7]
[357404187,1744047050597,-500.0,0.00027397,7]
[357404189,1744047050607,-500.0,0.00027397,7]
[357404191,1744047050617,-510.80263629,0.00027397,7]
[357404193,1744047050627,-560.96,0.00027397,7]
[357404195,1744047050636,-500.0,0.00027397,7]
[357404197,1744047050647,-500.0,0.00027397,7]
[357404199,1744047050656,-500.0,0.00027397,7]
[357404201,1744047050665,-500.0,0.00027397,7]
[357404203,1744047050675,-500.0,0.00027397,7]
[357404205,1744047050684,-500.0,0.00027397,7]
[357404207,1744047050693,-500.0,0.00027397,7]
[357404209,1744047050702,-503.76882722,0.00027397,7]
[357404211,1744047050711,-500.0,0.00027397,7]
[357404213,1744047050721,-500.0,0.00027397,7]
[357404215,1744047050731,-500.0,0.00027397,7]
[357404217,1744047050740,-500.0,0.00027397,7]
[357404219,1744047050749,-500.0,0.00027397,7]
[357404221,1744047050759,-500.0,0.00027397,7]
[357404223,1744047050769,-500.0,0.00027397,7]
[357404225,1744047050779,-500.0,0.00027397,7]
[357404227,1744047050788,-500.0,0.00027397,7]
[357404229,1744047050797,-151.0,0.00027397,7]
[357404231,1744047050806,-500.0,0.00027397,7]
[357404233,1744047050815,-500.0,0.00027397,7]
[357404235,1744047050825,-500.0,0.00027397,7]
[357404237,1744047050835,-778.88,0.00027397,7]
[357404239,1744047050845,-668.45,0.00027397,7]
[357404241,1744047050854,-500.0,0.00027397,7]
[357404243,1744047050864,-572.83,0.00027397,7]
[357404245,1744047050874,-500.0,0.00027397,7]
[357404247,1744047050884,-500.0,0.00027397,7]
[357404249,1744047050896,-546.45,0.00027397,7]
[357404250,1744047050908,-500.0,0.00027397,7]
[357404253,1744047050919,-500.0,0.00027397,7]
[357404255,1744047050928,-568.0,0.00027397,7]
[357404256,1744047050938,-314.722239,0.00027397,7]
[357404258,1744047050950,-500.0,0.00027397,7]
[357404260,1744047050961,-500.0,0.00027397,7]
[357404262,1744047050971,-500.0,0.00027397,7]
[357404264,1744047050982,-314.722239,0.00027397,7]
[357404267,1744047050993,-563.45,0.00027397,7]
[357404269,1744047051003,-972.64,0.00027397,7]
[357404271,1744047051013,-4027.15,0.00027397,2]
[357404273,1744047051024,-505.28549691,0.00027397,7]
[357404275,1744047051034,-500.0,0.00027397,7]
[357404277,1744047051044,-500.0,0.00027397,7]
[357404279,1744047051055,-500.0,0.00027397,7]
[357404281,1744047051065,-500.0,0.00027397,7]
[357404283,1744047051075,-1035.24,0.00027397,7]
[357404285,1744047051084,-500.0,0.00027397,7]
[357404286,1744047051094,-500.0,0.00027397,7]
[357404288,1744047051103,-204.70767763,0.00027397,7]
[357404290,1744047051113,-500.0,0.00027397,7]
[357404293,1744047051128,-500.0,0.00027397,7]
[357404294,1744047051138,-500.0,0.00027397,7]
[357404296,1744047051154,-500.0,0.00027397,7]
[357404297,1744047051164,-500.0,0.00027397,7]
[357404299,1744047051175,-1038.58,0.00027397,7]
[357404300,1744047051184,-500.0,0.00027397,7]
[357404302,1744047051194,-500.0,0.00027397,7]
[357404303,1744047051204,-500.0,0.00027397,7]
[357404305,1744047051213,-500.0,0.00027397,7]
[357404306,1744047051222,-500.0,0.00027397,7]
[357404308,1744047051232,-500.0,0.00027397,7]
[357404309,1744047051241,-500.53198428,0.00027397,7]
[357404311,1744047051250,-500.0,0.00027397,7]
[357404312,1744047051263,-500.0,0.00027397,7]
[357404314,1744047051272,-514.94987429,0.00027397,7]
[357404315,1744047051282,-500.0,0.00027397,7]
[357404317,1744047051291,-500.0,0.00027397,7]
[357404318,1744047051300,-500.0,0.00027397,7]
[357404320,1744047051310,-500.0,0.00027397,7]
[357404321,1744047051319,-500.0,0.00027397,7]
[357404323,1744047051330,-284.13316112,0.00027397,7]
[357404324,1744047051339,-273.27,0.00027397,7]
[357404326,1744047051351,-500.0,0.00027397,7]
[357404328,1744047051361,-667.74,0.00027397,7]
[357404329,1744047051370,-1258.41,0.00027397,7]
[357404330,1744047051381,-500.0,0.00027397,7]
[357404331,1744047051391,-3281.148553,0.00027397,7]
[357404332,1744047051404,-500.0,0.00027397,7]
[357404333,1744047051413,-500.0,0.00027397,7]
[357404334,1744047051423,-500.0,0.00027397,7]
[357404335,1744047051433,-500.0,0.00027397,7]
[357404336,1744047051442,-500.0,0.00027397,7]
[357404337,1744047051452,-500.0,0.00027397,7]
[357404338,1744047051461,-3281.148553,0.00027397,7]
[357404339,1744047051470,-1195.09,0.00027397,7]
[357404340,1744047051479,-408.18634433,0.00027397,7]
[357404439,1744048232724,-209.7892065,0.00024796,2]
[357404441,1744048232733,-957.96998144,0.00024905,2]
[357404443,1744048232743,-300.0,0.00024927,2]
[357404445,1744048232753,-24900.0,0.00024928,2]
[357404447,1744048232762,-380.0,0.00024928,2]
[357404449,1744048232771,-3491.5834555,0.00025135,2]
[357404451,1744048232782,-1038.6975275,0.00025214,2]
[357404452,1744048232794,-166.61976,0.00025349,2]
[357404453,1744048232804,-2254.00794021,0.00025868,2]
[357404455,1744048232814,-1000.0,0.00025946,2]
[357404457,1744048232824,-1430.66529918,0.0002599,2]
[357404459,1744048232834,-258.6,0.0002599,3]
[357404461,1744048232844,-775.84,0.0002599,3]
[357404463,1744048232853,-1585.97597688,0.0002599,2]
[357404466,1744048232878,-1813.8646,0.0002599,2]
[357404469,1744048232890,-1998.92121693,0.0002599,2]
[357404569,1744048239217,-547.73,0.0002599,3]
[357404571,1744048239228,-44601.23820619,0.0002599,2]
[357404573,1744048239238,-500.0,0.00025999,2]
[357404575,1744048239249,-500.0,0.00025999,2]
[357404577,1744048239259,-500.0,0.00025999,2]
[357404579,1744048239270,-177.12824317,0.00025999,2]
[357404581,1744048239281,-500.0,0.00025999,2]
[357404583,1744048239292,-500.0,0.00025999,2]
[357404585,1744048239304,-500.0,0.00025999,2]
[357404587,1744048239314,-500.0,0.00025999,2]
[357404589,1744048239325,-500.0,0.00025999,2]
[357404592,1744048239335,-500.0,0.00025999,2]
[357404594,1744048239346,-500.0,0.00025999,2]
[357404596,1744048239356,-210.0,0.00025999,2]
[357404598,1744048239367,-500.0,0.00025999,2]
[357404600,1744048239378,-500.0,0.00025999,2]
[357404602,1744048239388,-500.0,0.00025999,2]
[357404604,1744048239398,-500.0,0.00025999,2]
[357404606,1744048239408,-650.00000001,0.00025999,2]
[357404608,1744048239418,-500.0,0.00025999,2]
[357404610,1744048239428,-500.0,0.00025999,2]
[357404612,1744048239438,-547.20538335,0.00025999,2]
[357404614,1744048239447,-500.0,0.00025999,2]
[357404616,1744048239458,-500.0,0.00025999,2]